[Event "FIDE WCCC Open-12 2024"]
[Site "Montesilvano"]
[Date "2024.11.24"]
[Round "9.45"]
[White "Farzaleev, Daniyar"]
[Black "Liu, Richard Jingjie"]
[Result "1/2-1/2"]
[ECO "C64"]
[WhiteElo "1622"]
[BlackElo "1795"]
[Annotator "NA RC"]
[PlyCount "61"]
[EventDate "2024.11.18"]
[EventType "swiss"]
[EventCountry "ITA"]
[SourceTitle "playchess.com"]
[Source "ChessBase"]
[SourceQuality "1"]
[TimeControl "5400+30"]

1. e4 {[%emt 0:00:02]} e5 {[%emt 0:00:11]} 2. Nf3 {[%emt 0:00:03]} Nc6 {[%emt 0:00:04]} 3. Bb5 {[%emt 0:00:04]} Bc5 {[%emt 0:00:05]} 4. O-O {[%emt 0:00:05]} Nd4 {[%emt 0:00:04]} 5. Nxd4 {[%emt 0:00:47]} Bxd4 {[%emt 0:00:05]} 6. c3 {[%emt 0:00:09]} Bb6 {[%emt 0:00:03]} 7. d4 {[%emt 0:00:03]} c6 {[%emt 0:00:04]} 8. Ba4 {[%emt 1:33:17]} d6 {[%emt 0:00:07]} 9. dxe5 {[%emt 0:00:00]} dxe5 {[%emt 0:00:02]} 10. Nd2 {[%emt 0:00:00]} Nf6 {[%emt 0:00:18]} 11. h3 {[%emt 0:00:00]} Be6 {[%emt 0:00:08]} 12. Qe2 {[%emt 0:00:00]} O-O {[%emt 0:00:10]} 13. Nf3 {[%emt 0:00:00]} Bc7 {[%emt 0:00:12]} 14. Bg5 {[%emt 0:00:00]} h6 {[%emt 0:00:13]} 15. Bh4 {[%emt 0:00:00]} Qe7 {[%emt 0:00:28]} 16. Rfd1 {[%emt 0:00:00]} Rad8 {[%emt 0:01:05]} 17. Bc2 {[%emt 0:04:30]} b5 {[%emt 0:02:17]} 18. Bb3 {[%emt 0:00:00]} Bxb3 {[%emt 0:04:53]} 19. axb3 {[%emt 0:00:00]} a5 {[%emt 0:00:36]} 20. Rxd8 {[%emt 0:00:00]} Rxd8 {[%emt 0:00:12]} 21. Bxf6 {[%emt 0:00:00]} Qxf6 {[%emt 0:00:10]} 22. Rd1 {[%emt 0:00:00]} Qe6 {[%emt 0:01:10]} 23. Rxd8+ {[%emt 0:00:00]} Bxd8 {[%emt 0:00:01]} 24. c4 {[%emt 0:00:00]} b4 {[%emt 1:29:52]} 25. Qe3 {[%emt 0:00:00]} Qd6 {[%emt 0:00:00]} 26. Qa7 {[%emt 0:00:00]} Bf6 {[%emt 0:00:00]} 27. Kh2 {[%emt 0:00:00]} Qd3 {[%emt 0:00:00]} 28. Qxa5 {[%emt 0:00:00]} Qxb3 {[%emt 0:00:00]} 29. Qa8+ {[%emt 0:00:00]} Kh7 {[%emt 0:00:00]} 30. Qxc6 {[%emt 0:00:00]} Qxb2 {[%emt 0:00:00]} 31. Qd7 {[%emt 0:00:00]} 1/2-1/2

[Event "FIDE WCCC Open-12 2024"]
[Site "Montesilvano"]
[Date "2024.11.24"]
[Round "9.46"]
[White "Mintz, Nathan"]
[Black "Dos Santos, Leonardo Lopes"]
[Result "0-1"]
[ECO "A21"]
[WhiteElo "1633"]
[BlackElo "1930"]
[Annotator "NA RC"]
[PlyCount "54"]
[EventDate "2024.11.18"]
[EventType "swiss"]
[EventCountry "ITA"]
[SourceTitle "playchess.com"]
[Source "ChessBase"]
[SourceQuality "1"]
[TimeControl "5400+30"]

1. c4 {[%emt 0:00:04]} e5 {[%emt 0:00:27]} 2. Nc3 {[%emt 0:01:59]} Bb4 {[%emt 0:00:06]} 3. g3 {[%emt 0:00:27]} Bxc3 {[%emt 0:00:09]} 4. bxc3 {[%emt 0:00:15]} Nc6 {[%emt 0:00:23]} 5. Bg2 {[%emt 0:00:28]} d6 {[%emt 0:00:41]} 6. d3 {[%emt 0:01:07]} f5 {[%emt 0:00:18]} 7. Nf3 {[%emt 0:01:04]} Nf6 {[%emt 0:00:09]} 8. O-O {[%emt 0:01:17]} O-O {[%emt 0:00:15]} 9. h3 {[%emt 0:04:18]} Qe8 {[%emt 0:05:08]} 10. Rb1 {[%emt 0:05:10]} Rb8 {[%emt 0:11:43]} 11. Be3 {[%emt 0:04:30]} Qh5 {[%emt 0:10:00]} 12. Bg5 {[%emt 0:10:14]} Be6 {[%emt 0:15:49]} 13. Bxf6 {[%emt 0:02:53]} Rxf6 {[%emt 0:04:46]} 14. Nd2 {[%emt 0:06:30]} Ne7 {[%emt 0:06:54]} 15. Nb3 {[%emt 0:14:24]} f4 {[%emt 0:05:28]} 16. g4 {[%emt 0:07:54]} Bxg4 {[%emt 0:05:14]} 17. hxg4 {[%emt 0:02:08]} Qxg4 {[%emt 0:01:05]} 18. f3 {[%emt 0:03:11]} Qg5 {[%emt 0:00:33]} 19. Rf2 {[%emt 0:03:51]} Nf5 {[%emt 0:05:15]} 20. Nd2 {[%emt 0:06:22]} Rh6 {[%emt 0:09:20]} 21. Qb3 {[%emt 0:04:44]} Ne3 {[%emt 0:05:07]} 22. Nf1 {[%emt 0:03:42]} Rg6 {[%emt 0:01:12]} 23. Nd2 {[%emt 0:02:25]} Qh4 {[%emt 0:03:34]} 24. Ne4 {[%emt 0:04:20]} Qh3 {[%emt 0:02:30]} 25. c5+ {[%emt 0:01:48]} Kh8 {[%emt 0:00:20]} 26. cxd6 {[%emt 0:01:57]} Rxg2+ {[%emt 0:00:13]} 27. Rxg2 {[%emt 0:01:09]} Qxg2# {[%emt 0:00:51]} 0-1

[Event "FIDE WCCC Open-12 2024"]
[Site "Montesilvano"]
[Date "2024.11.24"]
[Round "9.47"]
[White "Fadeev, Justin Michael"]
[Black "Leht, Karl Samuel"]
[Result "1/2-1/2"]
[ECO "B42"]
[WhiteElo "1878"]
[BlackElo "1701"]
[Annotator "NA RC"]
[PlyCount "84"]
[EventDate "2024.11.18"]
[EventType "swiss"]
[EventCountry "ITA"]
[SourceTitle "playchess.com"]
[Source "ChessBase"]
[SourceQuality "1"]
[TimeControl "5400+30"]

1. e4 {[%emt 0:00:01]} c5 {[%emt 0:00:04]} 2. Nf3 {[%emt 0:00:07]} e6 {[%emt 0:00:06]} 3. d4 {[%emt 0:00:03]} cxd4 {[%emt 0:00:05]} 4. Nxd4 {[%emt 0:00:05]} a6 {[%emt 0:00:03]} 5. Bd3 {[%emt 0:00:40]} Bc5 {[%emt 0:00:06]} 6. Nb3 {[%emt 0:00:42]} Ba7 {[%emt 0:00:05]} 7. c4 {[%emt 0:03:39]} Nc6 {[%emt 0:01:11]} 8. O-O {[%emt 0:01:32]} Nf6 {[%emt 0:02:23]} 9. Qe2 {[%emt 0:03:52]} d6 {[%emt 0:02:09]} 10. Be3 {[%emt 0:02:34]} h6 {[%emt 0:02:11]} 11. Bxa7 {[%emt 0:01:15]} Rxa7 {[%emt 0:00:07]} 12. Nc3 {[%emt 0:01:44]} b6 {[%emt 0:02:59]} 13. Rad1 {[%emt 0:04:55]} Rd7 {[%emt 0:02:52]} 14. f4 {[%emt 0:01:05]} e5 {[%emt 0:04:20]} 15. Nd5 {[%emt 0:07:29]} O-O {[%emt 0:03:08]} 16. fxe5 {[%emt 0:01:38]} Nxd5 {[%emt 0:00:56]} 17. cxd5 {[%emt 0:02:39]} Nxe5 {[%emt 0:01:14]} 18. Bxa6 {[%emt 0:00:32]} Qe7 {[%emt 0:06:41]} 19. Bxc8 {[%emt 0:04:19]} Rxc8 {[%emt 0:00:20]} 20. Nd4 {[%emt 0:00:07]} g6 {[%emt 0:04:53]} 21. b4 {[%emt 0:07:56]} Ra7 {[%emt 1:05:07]} 22. Nb5 {[%emt 0:09:01]} Ra4 {[%emt 0:00:00]} 23. a3 {[%emt 0:01:23]} Raa8 {[%emt 0:00:00]} 24. Rc1 {[%emt 0:02:39]} Qd7 {[%emt 0:00:00]} 25. h3 {[%emt 0:07:24]} h5 {[%emt 0:00:00]} 26. Rxc8+ {[%emt 0:05:38]} Rxc8 {[%emt 0:00:00]} 27. Rf6 {[%emt 0:01:13]} Rc1+ {[%emt 0:00:00]} 28. Kh2 {[%emt 0:01:36]} Qe7 {[%emt 0:00:00]} 29. Qe3 {[%emt 0:08:04]} Qxf6 {[%emt 0:00:00]} 30. Qxc1 {[%emt 0:00:25]} Qf2 {[%emt 0:00:00]} 31. Nxd6 {[%emt 0:05:24]} Nf3+ {[%emt 0:00:00]} 32. Kh1 {[%emt 0:00:10]} Qg3 {[%emt 0:00:00]} 33. Qc8+ {[%emt 0:09:23]} Kh7 {[%emt 0:00:00]} 34. gxf3 {[%emt 0:00:11]} Qxf3+ {[%emt 0:00:00]} 35. Kg1 {[%emt 0:00:07]} Qd1+ {[%emt 0:00:00]} 36. Kf2 {[%emt 0:00:20]} Qd2+ {[%emt 0:00:00]} 37. Kf3 {[%emt 0:00:21]} Qd3+ {[%emt 0:00:00]} 38. Kf4 {[%emt 0:01:25]} Qd2+ {[%emt 0:00:00]} 39. Ke5 {[%emt 0:00:15]} Qb2+ {[%emt 0:00:00]} 40. Kf4 {[%emt 0:00:39]} Qf2+ {[%emt 0:00:00]} 41. Kg5 {[%emt 0:08:28]} Qg3+ 42. Kf6 Qxd6+ {[%emt 0:10:30]} 1/2-1/2

[Event "FIDE WCCC Open-12 2024"]
[Site "Montesilvano"]
[Date "2024.11.24"]
[Round "9.48"]
[White "Anagnostopoulos, Panagiotis"]
[Black "Boiko, Nazar"]
[Result "1-0"]
[ECO "C02"]
[WhiteElo "1848"]
[BlackElo "1614"]
[Annotator "NA RC"]
[PlyCount "69"]
[EventDate "2024.11.18"]
[EventType "swiss"]
[EventCountry "ITA"]
[SourceTitle "playchess.com"]
[Source "ChessBase"]
[SourceQuality "1"]
[TimeControl "5400+30"]

1. e4 {[%emt 0:00:10]} e6 {[%emt 0:00:05]} 2. d4 {[%emt 0:00:09]} d5 {[%emt 0:00:05]} 3. e5 {[%emt 0:00:15]} c5 {[%emt 0:00:04]} 4. c3 {[%emt 0:00:04]} Qb6 {[%emt 0:00:04]} 5. Nf3 {[%emt 0:00:07]} Nc6 {[%emt 0:00:07]} 6. Bd3 {[%emt 0:00:09]} cxd4 {[%emt 0:00:18]} 7. O-O {[%emt 0:00:08]} dxc3 {[%emt 0:18:52]} 8. Nxc3 {[%emt 0:00:06]} Nge7 {[%emt 0:34:58]} 9. Be3 {[%emt 0:01:39]} Qd8 {[%emt 0:03:37]} 10. Bg5 {[%emt 0:15:18]} Qd7 {[%emt 0:06:26]} 11. h4 {[%emt 0:05:54]} Ng6 {[%emt 0:09:54]} 12. Qe2 {[%emt 0:03:53]} Be7 {[%emt 0:04:17]} 13. h5 {[%emt 0:02:19]} Bxg5 {[%emt 0:03:34]} 14. hxg6 {[%emt 0:00:34]} Bd8 {[%emt 0:03:50]} 15. gxf7+ {[%emt 0:01:40]} Qxf7 {[%emt 0:00:31]} 16. Nb5 {[%emt 0:02:02]} Bc7 {[%emt 0:00:22]} 17. Ng5 {[%emt 0:00:36]} Qe7 {[%emt 0:01:01]} 18. Qh5+ {[%emt 0:01:57]} g6 {[%emt 0:02:46]} 19. Bxg6+ {[%emt 0:00:24]} hxg6 {[%emt 0:00:25]} 20. Qxh8+ {[%emt 0:00:14]} Kd7 {[%emt 0:00:17]} 21. Nxc7 {[%emt 0:02:56]} Kxc7 {[%emt 0:00:06]} 22. Qf6 {[%emt 0:00:44]} Qxf6 {[%emt 0:00:57]} 23. exf6 {[%emt 0:00:22]} Bd7 {[%emt 0:00:07]} 24. Rfe1 {[%emt 0:01:07]} e5 {[%emt 0:00:48]} 25. Rad1 {[%emt 0:00:50]} d4 {[%emt 0:00:08]} 26. Nh7 {[%emt 0:01:54]} Be8 {[%emt 0:01:48]} 27. f4 {[%emt 0:00:28]} exf4 {[%emt 0:00:31]} 28. Rxe8 {[%emt 0:00:10]} Rxe8 {[%emt 0:00:10]} 29. f7 {[%emt 0:00:02]} Ra8 {[%emt 0:00:27]} 30. f8=Q {[%emt 0:00:15]} Rxf8 {[%emt 0:00:05]} 31. Nxf8 {[%emt 0:00:04]} Kd6 {[%emt 0:00:17]} 32. Nxg6 {[%emt 0:00:03]} Kd5 {[%emt 0:00:18]} 33. Nxf4+ {[%emt 0:00:08]} Ke4 {[%emt 0:00:11]} 34. Nd3 {[%emt 0:00:21]} Ke3 {[%emt 0:00:23]} 35. Kf1 {[%emt 0:00:11]} 1-0

[Event "FIDE WCCC Open-12 2024"]
[Site "Montesilvano"]
[Date "2024.11.24"]
[Round "9.49"]
[White "Isakov, Amin"]
[Black "Petrovski, Nikola"]
[Result "1/2-1/2"]
[ECO "D75"]
[WhiteElo "1698"]
[BlackElo "1829"]
[Annotator "NA RC"]
[PlyCount "59"]
[EventDate "2024.11.18"]
[EventType "swiss"]
[EventCountry "ITA"]
[SourceTitle "playchess.com"]
[Source "ChessBase"]
[SourceQuality "1"]
[TimeControl "5400+30"]

1. d4 {[%emt 0:00:19]} Nf6 {[%emt 0:00:30]} 2. c4 {[%emt 0:00:13]} g6 {[%emt 0:00:06]} 3. Nc3 {[%emt 0:00:09]} d5 {[%emt 0:00:44]} 4. cxd5 {[%emt 0:00:31]} Nxd5 {[%emt 0:00:04]} 5. Nf3 {[%emt 0:00:11]} Bg7 {[%emt 0:00:07]} 6. g3 {[%emt 0:00:16]} O-O {[%emt 0:00:14]} 7. Bg2 {[%emt 0:00:11]} Nxc3 {[%emt 0:00:14]} 8. bxc3 {[%emt 0:00:08]} c5 {[%emt 0:00:08]} 9. O-O {[%emt 0:00:13]} Nc6 {[%emt 0:00:37]} 10. e3 {[%emt 0:00:19]} Qc7 {[%emt 0:00:54]} 11. Qe2 {[%emt 0:00:18]} Rd8 {[%emt 0:03:49]} 12. Rd1 {[%emt 0:01:22]} e6 {[%emt 0:12:57]} 13. Ba3 {[%emt 0:01:08]} cxd4 {[%emt 0:02:48]} 14. cxd4 {[%emt 0:01:21]} Qa5 {[%emt 0:05:06]} 15. Bb2 {[%emt 0:02:29]} Rb8 {[%emt 0:13:01]} 16. Nd2 {[%emt 0:01:32]} Ne7 {[%emt 0:03:50]} 17. Rdc1 {[%emt 0:01:36]} Bd7 {[%emt 0:03:49]} 18. Rc5 {[%emt 0:03:00]} Qa4 {[%emt 0:04:02]} 19. Nb3 {[%emt 0:10:01]} b6 {[%emt 0:10:15]} 20. Rc4 {[%emt 0:21:20]} Qa6 {[%emt 0:01:29]} 21. Qc2 {[%emt 0:00:24]} Rbc8 {[%emt 0:18:00]} 22. Rc7 {[%emt 0:00:57]} Nd5 {[%emt 0:02:28]} 23. Rxc8 {[%emt 0:14:12]} Rxc8 {[%emt 0:00:09]} 24. Qd2 {[%emt 0:00:09]} Qa4 {[%emt 0:09:45]} 25. h3 {[%emt 0:10:37]} Nb4 {[%emt 0:01:33]} 26. Bc3 {[%emt 0:01:26]} Nd5 {[%emt 0:03:04]} 27. Bb2 {[%emt 0:04:31]} h6 {[%emt 0:00:14]} 28. Be4 {[%emt 0:06:03]} Nb4 {[%emt 0:01:48]} 29. Bc3 {[%emt 0:01:01]} Nd5 {[%emt 0:01:22]} 30. Bb2 {[%emt 0:19:33]} 1/2-1/2

[Event "FIDE WCCC Open-12 2024"]
[Site "Montesilvano"]
[Date "2024.11.24"]
[Round "9.50"]
[White "Padure, Dragos-Alexandru"]
[Black "Son, Juwon"]
[Result "1-0"]
[ECO "B33"]
[WhiteElo "1822"]
[BlackElo "1448"]
[Annotator "NA RC"]
[PlyCount "99"]
[EventDate "2024.11.18"]
[EventType "swiss"]
[EventCountry "ITA"]
[SourceTitle "playchess.com"]
[Source "ChessBase"]
[SourceQuality "1"]
[TimeControl "5400+30"]

1. e4 {[%emt 0:00:02]} c5 {[%emt 0:00:02]} 2. Nf3 {[%emt 0:00:04]} Nc6 {[%emt 0:00:06]} 3. d4 {[%emt 0:00:05]} cxd4 {[%emt 0:00:03]} 4. Nxd4 {[%emt 0:00:03]} Nf6 {[%emt 0:00:07]} 5. Nc3 {[%emt 0:00:05]} e5 {[%emt 0:00:07]} 6. Ndb5 {[%emt 0:00:05]} d6 {[%emt 0:00:05]} 7. Bg5 {[%emt 0:00:10]} a6 {[%emt 0:00:13]} 8. Na3 {[%emt 0:00:04]} b5 {[%emt 0:00:03]} 9. Nd5 {[%emt 0:00:11]} Be7 {[%emt 0:00:05]} 10. Bxf6 {[%emt 0:00:15]} Bxf6 {[%emt 0:00:11]} 11. c3 {[%emt 0:00:18]} Ne7 {[%emt 0:00:07]} 12. Nc2 {[%emt 0:13:31]} Nxd5 {[%emt 0:02:34]} 13. Qxd5 {[%emt 0:01:05]} Ra7 {[%emt 0:05:14]} 14. Rd1 {[%emt 0:10:11]} Bb7 {[%emt 0:08:41]} 15. Qd3 {[%emt 0:00:40]} O-O {[%emt 0:05:50]} 16. Be2 {[%emt 0:04:38]} Qa8 {[%emt 0:07:19]} 17. Bf3 {[%emt 0:03:25]} Rd8 {[%emt 0:03:52]} 18. O-O {[%emt 0:01:59]} Bc6 {[%emt 0:09:36]} 19. b3 {[%emt 0:11:06]} a5 {[%emt 0:07:17]} 20. c4 {[%emt 0:05:59]} b4 {[%emt 0:03:18]} 21. Ne3 {[%emt 0:01:57]} g6 {[%emt 0:04:14]} 22. Rd2 {[%emt 0:06:56]} a4 {[%emt 0:06:47]} 23. Rfd1 {[%emt 0:04:15]} axb3 {[%emt 0:06:17]} 24. axb3 {[%emt 0:00:01]} Bg5 {[%emt 0:05:23]} 25. g4 {[%emt 0:20:43]} f5 {[%emt 0:03:33]} 26. gxf5 {[%emt 0:01:03]} gxf5 {[%emt 0:00:12]} 27. Nxf5 {[%emt 0:01:50]} Bxd2 {[%emt 0:01:02]} 28. Qxd2 {[%emt 0:00:01]} Kh8 {[%emt 0:03:33]} 29. Nxd6 {[%emt 0:03:50]} Rdd7 {[%emt 0:03:41]} 30. Qh6 {[%emt 0:02:35]} Qg8+ {[%emt 0:01:55]} 31. Kh1 {[%emt 0:00:17]} Qg6 {[%emt 0:01:21]} 32. Qf8+ {[%emt 0:00:59]} Qg8 {[%emt 0:00:27]} 33. Qf6+ {[%emt 0:00:14]} Qg7 {[%emt 0:00:36]} 34. Nf7+ {[%emt 0:01:22]} Kg8 {[%emt 0:00:52]} 35. Rg1 {[%emt 0:03:03]} Qxg1+ {[%emt 0:03:23]} 36. Kxg1 {[%emt 0:00:01]} Rxf7 {[%emt 0:00:13]} 37. Qxc6 {[%emt 0:00:47]} Rxf3 {[%emt 0:00:22]} 38. Qe8+ {[%emt 0:02:02]} Kg7 {[%emt 0:03:44]} 39. Qxe5+ {[%emt 0:00:24]} Kg8 {[%emt 0:02:35]} 40. Qb8+ {[%emt 0:00:04]} Kf7 {[%emt 0:01:32]} 41. Qxa7+ {[%emt 0:00:07]} Ke6 {[%emt 0:00:23]} 42. Qb6+ {[%emt 0:00:28]} Ke5 {[%emt 0:00:05]} 43. Qc5+ {[%emt 0:00:12]} Kxe4 {[%emt 0:00:27]} 44. Qd5+ {[%emt 0:00:08]} Kf4 {[%emt 0:00:20]} 45. Qxf3+ {[%emt 0:00:13]} Kxf3 {[%emt 0:00:06]} 46. c5 {[%emt 0:00:04]} Ke4 {[%emt 0:00:49]} 47. c6 {[%emt 0:00:06]} Kd3 {[%emt 0:00:21]} 48. c7 {[%emt 0:00:24]} Kc2 {[%emt 0:00:09]} 49. c8=Q+ {[%emt 0:00:07]} Kxb3 {[%emt 0:00:06]} 50. f4 {[%emt 0:00:20]} 1-0

[Event "FIDE WCCC Open-12 2024"]
[Site "Montesilvano"]
[Date "2024.11.24"]
[Round "9.51"]
[White "Mihajlovic, Stefan"]
[Black "Zhang, Sean"]
[Result "0-1"]
[ECO "A00"]
[WhiteElo "1594"]
[BlackElo "1789"]
[Annotator "NA RC"]
[PlyCount "56"]
[EventDate "2024.11.18"]
[EventType "swiss"]
[EventCountry "ITA"]
[SourceTitle "playchess.com"]
[Source "ChessBase"]
[SourceQuality "1"]
[TimeControl "5400+30"]

1. g4 {[%emt 0:00:13]} d5 {[%emt 0:01:12]} 2. Bg2 {[%emt 0:00:08]} Bxg4 {[%emt 0:00:28]} 3. c4 {[%emt 0:00:21]} e6 {[%emt 0:01:55]} 4. Qa4+ {[%emt 0:00:07]} Qd7 {[%emt 0:01:55]} 5. Qxd7+ {[%emt 0:00:19]} Nxd7 {[%emt 0:00:22]} 6. cxd5 {[%emt 0:00:21]} exd5 {[%emt 0:00:12]} 7. Bxd5 {[%emt 0:00:08]} c6 {[%emt 0:00:22]} 8. Bg2 {[%emt 0:01:04]} Ngf6 {[%emt 0:00:27]} 9. Nc3 {[%emt 0:02:24]} Bd6 {[%emt 0:01:53]} 10. d3 {[%emt 0:00:59]} O-O-O {[%emt 0:00:53]} 11. Bd2 {[%emt 0:00:28]} Rhe8 {[%emt 0:00:34]} 12. O-O-O {[%emt 0:00:44]} Bc5 {[%emt 0:01:07]} 13. f3 {[%emt 0:01:30]} Be6 {[%emt 0:01:34]} 14. e4 {[%emt 0:00:38]} Ne5 {[%emt 0:00:45]} 15. Bf1 {[%emt 0:00:48]} Nxd3+ {[%emt 0:00:31]} 16. Bxd3 {[%emt 0:00:25]} Rxd3 {[%emt 0:00:09]} 17. e5 {[%emt 0:01:11]} Nd5 {[%emt 0:00:27]} 18. Ne4 {[%emt 0:00:11]} Be7 {[%emt 0:01:29]} 19. Ne2 {[%emt 0:02:37]} Rxf3 {[%emt 0:03:58]} 20. Rdf1 {[%emt 0:00:54]} Rxf1+ {[%emt 0:00:48]} 21. Rxf1 {[%emt 0:00:05]} Rd8 {[%emt 0:00:14]} 22. Ng5 {[%emt 0:00:59]} Bxg5 {[%emt 0:00:31]} 23. Bxg5 {[%emt 0:00:07]} Rd7 {[%emt 0:00:04]} 24. Ng3 {[%emt 0:00:43]} Nb4 {[%emt 0:00:25]} 25. Nh5 {[%emt 0:02:14]} h6 {[%emt 0:02:34]} 26. Bf4 {[%emt 0:00:27]} Bf5 {[%emt 0:00:59]} 27. Bd2 {[%emt 0:04:00]} Nxa2+ {[%emt 0:01:09]} 28. Kd1 {[%emt 0:00:39]} Bg4+ {[%emt 0:00:06]} 0-1

[Event "FIDE WCCC Open-12 2024"]
[Site "Montesilvano"]
[Date "2024.11.24"]
[Round "9.52"]
[White "Wang, Yu-Chi Xavier"]
[Black "Pham, Le Thao Nguyen"]
[Result "1/2-1/2"]
[ECO "B22"]
[WhiteElo "1543"]
[BlackElo "2384"]
[Annotator "RC"]
[PlyCount "53"]
[EventDate "2024.11.18"]
[EventType "swiss"]
[EventCountry "ITA"]
[SourceTitle "playchess.com"]
[Source "ChessBase"]
[SourceQuality "1"]
[TimeControl "5400+30"]

1. e4 {[%emt 0:00:03]} c5 {[%emt 0:00:01]} 2. c3 {[%emt 0:00:14]} Nf6 {[%emt 0:00:03]} 3. e5 {[%emt 0:00:51]} Nd5 {[%emt 0:00:02]} 4. d4 {[%emt 0:01:51]} cxd4 {[%emt 0:00:02]} 5. Nf3 {[%emt 0:01:04]} Nc6 {[%emt 0:00:03]} 6. cxd4 {[%emt 0:05:11]} d6 {[%emt 0:00:58]} 7. Bc4 {[%emt 0:00:57]} e6 {[%emt 0:00:21]} 8. Bxd5 {[%emt 0:03:30]} exd5 {[%emt 0:00:02]} 9. O-O {[%emt 0:00:40]} Be7 {[%emt 0:04:56]} 10. h3 {[%emt 0:05:37]} O-O {[%emt 0:00:09]} 11. Nc3 {[%emt 0:00:48]} Be6 {[%emt 0:00:02]} 12. Re1 {[%emt 0:00:52]} dxe5 {[%emt 0:10:10]} 13. Nxe5 {[%emt 0:02:29]} Nxe5 {[%emt 0:00:13]} 14. Rxe5 {[%emt 0:01:03]} Bf6 {[%emt 0:00:06]} 15. Re2 {[%emt 0:02:16]} Qa5 {[%emt 0:01:26]} 16. Bf4 {[%emt 0:05:34]} Rac8 {[%emt 0:01:06]} 17. Be5 {[%emt 0:07:50]} Be7 {[%emt 0:00:01]} 18. Rc1 {[%emt 0:01:45]} b5 {[%emt 0:06:04]} 19. Rec2 {[%emt 0:13:39]} b4 {[%emt 0:00:31]} 20. Ne2 {[%emt 0:00:35]} Qxa2 {[%emt 0:06:29]} 21. Nf4 {[%emt 0:04:40]} Rxc2 {[%emt 0:47:59]} 22. Rxc2 {[%emt 0:05:04]} Qa6 {[%emt 0:01:50]} 23. Rc7 {[%emt 0:03:13]} Bd6 {[%emt 0:10:14]} 24. Bxd6 {[%emt 0:12:39]} Qxd6 {[%emt 0:00:35]} 25. Nxe6 {[%emt 0:00:14]} Qxe6 {[%emt 0:04:21]} 26. Rxa7 {[%emt 0:02:08]} Rc8 {[%emt 0:02:09]} 27. Qd2 {[%emt 0:03:21]} 1/2-1/2

[Event "FIDE WCCC Open-12 2024"]
[Site "Montesilvano"]
[Date "2024.11.24"]
[Round "9.53"]
[White "Ilcic, Aleksa"]
[Black "Teo, Hong Kai Javier"]
[Result "1-0"]
[ECO "E11"]
[WhiteElo "1757"]
[BlackElo "1675"]
[Annotator "NA RC"]
[PlyCount "71"]
[EventDate "2024.11.18"]
[EventType "swiss"]
[EventCountry "ITA"]
[SourceTitle "playchess.com"]
[Source "ChessBase"]
[SourceQuality "1"]
[TimeControl "5400+30"]

1. d4 {[%emt 1:31:00]} e6 {[%emt 0:00:30]} 2. c4 {[%emt 0:00:00]} Nf6 {[%emt 0:00:06]} 3. Nf3 {[%emt 0:00:00]} Bb4+ {[%emt 0:00:17]} 4. Bd2 {[%emt 0:00:00]} Bxd2+ {[%emt 0:00:23]} 5. Nbxd2 {[%emt 0:00:00]} d6 {[%emt 0:00:52]} 6. e3 {[%emt 0:00:00]} b6 {[%emt 0:03:48]} 7. Be2 {[%emt 0:00:00]} Bb7 {[%emt 0:02:07]} 8. O-O {[%emt 0:00:00]} O-O {[%emt 0:02:54]} 9. Qc2 {[%emt 0:00:00]} Nbd7 {[%emt 0:02:26]} 10. Rfd1 {[%emt 0:00:00]} Qe7 {[%emt 0:02:16]} 11. Bd3 {[%emt 0:00:00]} e5 {[%emt 0:06:24]} 12. dxe5 {[%emt 0:00:00]} dxe5 {[%emt 0:01:21]} 13. Ne4 {[%emt 0:00:00]} Rad8 {[%emt 0:11:12]} 14. Rac1 {[%emt 0:06:30]} Rfe8 {[%emt 0:09:29]} 15. a3 {[%emt 0:00:00]} a5 {[%emt 0:07:13]} 16. Nfg5 {[%emt 0:00:00]} h6 {[%emt 0:07:43]} 17. Nxf6+ {[%emt 0:00:00]} Qxf6 {[%emt 0:01:54]} 18. Be4 {[%emt 0:00:00]} Bxe4 {[%emt 0:10:44]} 19. Nxe4 {[%emt 0:00:00]} Qe6 {[%emt 0:01:30]} 20. c5 {[%emt 0:00:58]} f5 {[%emt 0:06:57]} 21. cxb6 {[%emt 0:00:11]} fxe4 {[%emt 0:01:13]} 22. bxc7 {[%emt 0:00:15]} Rc8 {[%emt 0:00:13]} 23. Qxe4 {[%emt 0:00:15]} Nf6 {[%emt 0:00:52]} 24. Qb7 {[%emt 0:01:01]} Ra8 {[%emt 0:05:09]} 25. Qxa8 {[%emt 0:01:19]} Rxa8 {[%emt 0:03:28]} 26. Rd8+ {[%emt 0:00:07]} Rxd8 {[%emt 0:00:20]} 27. cxd8=Q+ {[%emt 0:00:11]} Kh7 {[%emt 0:00:03]} 28. Qxa5 {[%emt 0:00:18]} Qf5 {[%emt 0:00:14]} 29. Qc3 {[%emt 0:00:29]} e4 {[%emt 0:00:28]} 30. h3 {[%emt 0:00:11]} Nd7 {[%emt 0:00:20]} 31. b4 {[%emt 0:00:45]} Ne5 {[%emt 0:00:38]} 32. Qc5 {[%emt 0:00:37]} Qf6 {[%emt 0:00:26]} 33. Qd4 {[%emt 0:00:20]} Qf5 {[%emt 0:01:00]} 34. Rc5 {[%emt 0:00:39]} Nf3+ {[%emt 0:00:06]} 35. gxf3 {[%emt 0:00:08]} Qxf3 {[%emt 0:00:05]} 36. Rc7 {[%emt 0:00:31]} 1-0

[Event "FIDE WCCC Open-12 2024"]
[Site "Montesilvano"]
[Date "2024.11.24"]
[Round "9.54"]
[White "Macia Tell, Dario"]
[Black "Yin, Milo"]
[Result "0-1"]
[ECO "D35"]
[WhiteElo "1520"]
[BlackElo "1925"]
[Annotator "NA RC"]
[PlyCount "80"]
[EventDate "2024.11.18"]
[EventType "swiss"]
[EventCountry "ITA"]
[SourceTitle "playchess.com"]
[Source "ChessBase"]
[SourceQuality "1"]
[TimeControl "5400+30"]

1. d4 {[%emt 0:00:03]} d5 {[%emt 0:00:16]} 2. c4 {[%emt 0:00:06]} e6 {[%emt 0:00:08]} 3. Nc3 {[%emt 0:00:06]} Nf6 {[%emt 0:00:08]} 4. Bg5 {[%emt 0:00:11]} c6 {[%emt 0:00:17]} 5. cxd5 {[%emt 0:00:15]} exd5 {[%emt 0:00:12]} 6. e3 {[%emt 0:01:46]} Be6 {[%emt 0:00:26]} 7. Bd3 {[%emt 0:00:56]} Nbd7 {[%emt 0:00:18]} 8. Qc2 {[%emt 0:03:08]} h6 {[%emt 0:00:21]} 9. Bh4 {[%emt 0:00:08]} g5 {[%emt 0:00:13]} 10. Bg3 {[%emt 0:00:05]} Nh5 {[%emt 0:00:14]} 11. Nge2 {[%emt 0:02:13]} Nxg3 {[%emt 0:01:00]} 12. hxg3 {[%emt 0:00:18]} Qa5 {[%emt 0:09:11]} 13. Qa4 {[%emt 0:05:50]} Bb4 {[%emt 0:05:38]} 14. Qxa5 {[%emt 0:01:15]} Bxa5 {[%emt 0:00:04]} 15. a3 {[%emt 0:00:41]} Bc7 {[%emt 0:02:41]} 16. b4 {[%emt 0:00:34]} Ke7 {[%emt 0:03:08]} 17. Kd2 {[%emt 0:00:40]} b5 {[%emt 0:02:18]} 18. Rac1 {[%emt 0:06:20]} Bd6 {[%emt 0:10:29]} 19. e4 {[%emt 0:05:13]} dxe4 {[%emt 0:06:11]} 20. Nxe4 {[%emt 0:01:18]} Rac8 {[%emt 0:04:12]} 21. Nxd6 {[%emt 0:01:46]} Kxd6 {[%emt 0:00:41]} 22. Rh2 {[%emt 0:00:23]} Nf6 {[%emt 0:01:50]} 23. f3 {[%emt 0:01:09]} h5 {[%emt 0:05:10]} 24. Nc3 {[%emt 0:01:14]} a5 {[%emt 0:04:07]} 25. Ne4+ {[%emt 0:00:17]} Nxe4+ {[%emt 0:00:08]} 26. Bxe4 {[%emt 0:00:06]} Bc4 {[%emt 0:01:32]} 27. Rch1 {[%emt 0:01:19]} axb4 {[%emt 0:03:08]} 28. axb4 {[%emt 0:00:07]} Ra8 {[%emt 0:01:23]} 29. Rxh5 {[%emt 0:00:14]} Ra2+ {[%emt 0:00:10]} 30. Kc3 {[%emt 0:00:29]} Rha8 {[%emt 0:00:16]} 31. Rh6+ {[%emt 0:00:11]} f6 {[%emt 0:02:11]} 32. d5 {[%emt 0:07:44]} R8a3+ {[%emt 0:00:14]} 33. Kd4 {[%emt 0:00:19]} Rd2+ {[%emt 0:00:08]} 34. Bd3 {[%emt 0:00:05]} Raxd3+ {[%emt 0:01:49]} 35. Ke4 {[%emt 0:00:08]} Rxd5 {[%emt 0:01:14]} 36. f4 {[%emt 0:00:40]} g4 {[%emt 0:01:07]} 37. Re1 {[%emt 0:00:55]} Ke6 {[%emt 0:05:35]} 38. Rh8 {[%emt 0:05:19]} R5d4+ {[%emt 0:00:15]} 39. Ke3 {[%emt 0:00:20]} R4d3+ {[%emt 0:00:06]} 40. Ke4 {[%emt 0:00:44]} f5# {[%emt 0:00:38]} 0-1